[Event "Early-Titled-Tuesday-Blitz-March-05-2024"]
[Site "Chess.com"]
[Date "2024.03.05"]
[Round "1"]
[White "RobertoJBM"]
[Black "Der_Balak_3Halak"]
[Result "1-0"]
[WhiteElo "2851"]
[BlackElo "2468"]
[TimeControl "180+1"]
[EndTime "8:09:31 PST"]
[Termination "RobertoJBM won by checkmate"]

1. d4 {[%clk 0:02:57.8]} 1... d5 {[%clk 0:02:53.7]} 2. Nf3 {[%clk 0:02:57.2]}
2... Nc6 {[%clk 0:02:51.5]} 3. e3 {[%clk 0:02:51.5]} 3... Bf5 {[%clk 0:02:36.3]}
4. Bd3 {[%clk 0:02:50.9]} 4... Bxd3 {[%clk 0:02:34.5]} 5. Qxd3 {[%clk
0:02:50.4]} 5... e6 {[%clk 0:02:35.4]} 6. Qb5 {[%clk 0:02:48.6]} 6... Bd6 {[%clk
0:02:29.6]} 7. Qxb7 {[%clk 0:02:46.3]} 7... Nge7 {[%clk 0:02:30.1]} 8. Qa6
{[%clk 0:02:33.5]} 8... O-O {[%clk 0:02:25.7]} 9. Qe2 {[%clk 0:02:29.4]} 9...
Nf5 {[%clk 0:02:19.5]} 10. c3 {[%clk 0:02:22.4]} 10... Rb8 {[%clk 0:02:18.2]}
11. Nbd2 {[%clk 0:02:20.4]} 11... g5 {[%clk 0:02:13.5]} 12. e4 {[%clk
0:02:18.4]} 12... Ng7 {[%clk 0:01:58.6]} 13. e5 {[%clk 0:01:41.1]} 13... Be7
{[%clk 0:01:56.4]} 14. Nf1 {[%clk 0:01:38.3]} 14... f5 {[%clk 0:01:52.3]} 15.
exf6 {[%clk 0:01:37.6]} 15... Bxf6 {[%clk 0:01:52.4]} 16. Ng3 {[%clk 0:01:36.3]}
16... h5 {[%clk 0:01:49.4]} 17. Be3 {[%clk 0:01:08.3]} 17... g4 {[%clk
0:01:19.1]} 18. Ng1 {[%clk 0:00:59.2]} 18... e5 {[%clk 0:01:19.4]} 19. dxe5
{[%clk 0:00:56]} 19... Nxe5 {[%clk 0:01:16.7]} 20. O-O-O {[%clk 0:00:45.5]}
20... Nc4 {[%clk 0:00:46.4]} 21. Qxc4 {[%clk 0:00:42.9]} 21... dxc4 {[%clk
0:00:45]} 22. Rxd8 {[%clk 0:00:43.8]} 22... Rfxd8 {[%clk 0:00:44.6]} 23. N1e2
{[%clk 0:00:42.9]} 23... Rd7 {[%clk 0:00:33.6]} 24. Ne4 {[%clk 0:00:26.5]} 24...
Kf7 {[%clk 0:00:31.8]} 25. Kc2 {[%clk 0:00:19.9]} 25... Nf5 {[%clk 0:00:31.8]}
26. Bc1 {[%clk 0:00:19.4]} 26... Rbd8 {[%clk 0:00:30.5]} 27. N2g3 {[%clk
0:00:17.2]} 27... Kg6 {[%clk 0:00:28.1]} 28. Nxf5 {[%clk 0:00:16.9]} 28... Kxf5
{[%clk 0:00:29]} 29. Re1 {[%clk 0:00:16]} 29... Be7 {[%clk 0:00:26.1]} 30. Ng3+
{[%clk 0:00:15.4]} 30... Kg6 {[%clk 0:00:25.4]} 31. Re6+ {[%clk 0:00:15.8]}
31... Kf7 {[%clk 0:00:20.3]} 32. Re1 {[%clk 0:00:14.8]} 32... Kg6 {[%clk
0:00:17.9]} 33. Re6+ {[%clk 0:00:14.2]} 33... Bf6 {[%clk 0:00:18.5]} 34. Rc6
{[%clk 0:00:11.5]} 34... Rd6 {[%clk 0:00:17.8]} 35. Rxc4 {[%clk 0:00:11.3]}
35... Bg5 {[%clk 0:00:18.1]} 36. Bxg5 {[%clk 0:00:10.6]} 36... Kxg5 {[%clk
0:00:19]} 37. Ne4+ {[%clk 0:00:11.2]} 37... Kg6 {[%clk 0:00:17.7]} 38. Nxd6
{[%clk 0:00:12.1]} 38... cxd6 {[%clk 0:00:18.3]} 39. Rd4 {[%clk 0:00:12.1]}
39... d5 {[%clk 0:00:18.7]} 40. Rd2 {[%clk 0:00:12.3]} 40... Kf5 {[%clk
0:00:18.2]} 41. Kd3 {[%clk 0:00:12.7]} 41... Kf4 {[%clk 0:00:17.2]} 42. Kd4
{[%clk 0:00:13]} 42... Rc8 {[%clk 0:00:17.1]} 43. b3 {[%clk 0:00:12.9]} 43... h4
{[%clk 0:00:15.7]} 44. Rd3 {[%clk 0:00:12.8]} 44... Re8 {[%clk 0:00:15.6]} 45.
Re3 {[%clk 0:00:12.8]} 45... Re4+ {[%clk 0:00:15.2]} 46. Rxe4+ {[%clk
0:00:12.1]} 46... dxe4 {[%clk 0:00:16.1]} 47. c4 {[%clk 0:00:10.7]} 47... h3
{[%clk 0:00:15]} 48. gxh3 {[%clk 0:00:10.5]} 48... gxh3 {[%clk 0:00:14.9]} 49.
c5 {[%clk 0:00:10.4]} 49... Kf3 {[%clk 0:00:14.6]} 50. c6 {[%clk 0:00:10.7]}
50... e3 {[%clk 0:00:14]} 51. fxe3 {[%clk 0:00:10.7]} 51... Kg2 {[%clk
0:00:14.7]} 52. c7 {[%clk 0:00:11.2]} 52... Kxh2 {[%clk 0:00:15.6]} 53. c8=Q
{[%clk 0:00:12.1]} 53... Kg2 {[%clk 0:00:16.5]} 54. Qxh3+ {[%clk 0:00:12.3]}
54... Kxh3 {[%clk 0:00:16.9]} 55. e4 {[%clk 0:00:12.8]} 55... Kg4 {[%clk
0:00:17.8]} 56. Kd5 {[%clk 0:00:13.3]} 56... Kf4 {[%clk 0:00:18.1]} 57. e5
{[%clk 0:00:13.8]} 57... Kf5 {[%clk 0:00:19]} 58. Kd6 {[%clk 0:00:14]} 58... a5
{[%clk 0:00:18.7]} 59. e6 {[%clk 0:00:14.3]} 59... a4 {[%clk 0:00:19.6]} 60.
bxa4 {[%clk 0:00:15.1]} 60... Ke4 {[%clk 0:00:19.3]} 61. e7 {[%clk 0:00:14.8]}
61... Kd4 {[%clk 0:00:20.2]} 62. e8=Q {[%clk 0:00:15.2]} 62... Kc4 {[%clk
0:00:21.1]} 63. Qb5+ {[%clk 0:00:15.4]} 63... Kd4 {[%clk 0:00:21.7]} 64. Kd7
{[%clk 0:00:15.9]} 64... Kc3 {[%clk 0:00:22.5]} 65. Ke6 {[%clk 0:00:16.8]} 65...
Kd4 {[%clk 0:00:23.2]} 66. Ke7 {[%clk 0:00:16.9]} 66... Ke4 {[%clk 0:00:24.1]}
67. Kf6 {[%clk 0:00:17.6]} 67... Kf4 {[%clk 0:00:24.4]} 68. Kf7 {[%clk
0:00:18.5]} 68... Ke4 {[%clk 0:00:25.3]} 69. Kg6 {[%clk 0:00:19.4]} 69... Kf4
{[%clk 0:00:26]} 70. Kg7 {[%clk 0:00:20.3]} 70... Ke4 {[%clk 0:00:26.9]} 71. Kh6
{[%clk 0:00:21.2]} 71... Kf4 {[%clk 0:00:27.8]} 72. Kh7 {[%clk 0:00:22.1]} 72...
Ke4 {[%clk 0:00:28.7]} 73. Kh8 {[%clk 0:00:23]} 73... Kf4 {[%clk 0:00:29.6]} 74.
Kg8 {[%clk 0:00:23.9]} 74... Ke4 {[%clk 0:00:30.5]} 75. Kf8 {[%clk 0:00:24.8]}
75... Kf4 {[%clk 0:00:31.4]} 76. Ke8 {[%clk 0:00:25.7]} 76... Ke4 {[%clk
0:00:32.3]} 77. Kd8 {[%clk 0:00:26.6]} 77... Kf4 {[%clk 0:00:33.2]} 78. Kc7
{[%clk 0:00:27.5]} 78... Ke4 {[%clk 0:00:34.1]} 79. Kb6 {[%clk 0:00:28.4]} 79...
Kf4 {[%clk 0:00:35]} 80. Ka5 {[%clk 0:00:29.3]} 80... Ke4 {[%clk 0:00:35.9]} 81.
Qd7 {[%clk 0:00:28.4]} 81... Kf4 {[%clk 0:00:36.8]} 82. Kb4 {[%clk 0:00:28.1]}
82... Ke4 {[%clk 0:00:37.7]} 83. Kb3 {[%clk 0:00:27.8]} 83... Kf4 {[%clk
0:00:38.6]} 84. Kb2 {[%clk 0:00:28.1]} 84... Ke4 {[%clk 0:00:39.5]} 85. Kb1
{[%clk 0:00:26.7]} 85... Kf4 {[%clk 0:00:40.4]} 86. Kc2 {[%clk 0:00:26.3]} 86...
Ke4 {[%clk 0:00:41.3]} 87. Kc1 {[%clk 0:00:26.3]} 87... Kf4 {[%clk 0:00:42.2]}
88. Qd8 {[%clk 0:00:25.8]} 88... Ke4 {[%clk 0:00:43.1]} 89. Kc2 {[%clk
0:00:24.9]} 89... Kf4 {[%clk 0:00:44]} 90. Kc3 {[%clk 0:00:24.9]} 90... Ke4
{[%clk 0:00:44.9]} 91. a3 {[%clk 0:00:25.3]} 91... Kf4 {[%clk 0:00:45.8]} 92.
Kb2 {[%clk 0:00:24.6]} 92... Ke4 {[%clk 0:00:46.7]} 93. Kc2 {[%clk 0:00:25.5]}
93... Kf4 {[%clk 0:00:47.6]} 94. Kb3 {[%clk 0:00:26.4]} 94... Ke4 {[%clk
0:00:48.5]} 95. Kb4 {[%clk 0:00:27.3]} 95... Kf4 {[%clk 0:00:49.4]} 96. Kc4
{[%clk 0:00:28.2]} 96... Ke4 {[%clk 0:00:50.3]} 97. Kb5 {[%clk 0:00:29.1]} 97...
Kf4 {[%clk 0:00:51.2]} 98. Kc5 {[%clk 0:00:30]} 98... Ke4 {[%clk 0:00:52.1]} 99.
Kb6 {[%clk 0:00:30.9]} 99... Kf4 {[%clk 0:00:53]} 100. Kc6 {[%clk 0:00:31.8]}
100... Ke4 {[%clk 0:00:53.9]} 101. Kc7 {[%clk 0:00:32.7]} 101... Kf4 {[%clk
0:00:54.8]} 102. Qd7 {[%clk 0:00:33]} 102... Ke4 {[%clk 0:00:55.7]} 103. Kd8
{[%clk 0:00:33.1]} 103... Kf4 {[%clk 0:00:56.6]} 104. Ke8 {[%clk 0:00:33.4]}
104... Ke4 {[%clk 0:00:57.5]} 105. Qc6+ {[%clk 0:00:32.6]} 105... Kf4 {[%clk
0:00:58.4]} 106. Ke7 {[%clk 0:00:33]} 106... Kg5 {[%clk 0:00:52.5]} 107. a5
{[%clk 0:00:33.9]} 107... Kf4 {[%clk 0:00:53.4]} 108. a6 {[%clk 0:00:33.8]}
108... Kg5 {[%clk 0:00:54.3]} 109. a7 {[%clk 0:00:34.1]} 109... Kf4 {[%clk
0:00:55.2]} 110. a8=Q {[%clk 0:00:34.5]} 110... Kg5 {[%clk 0:00:56.1]} 111. a4
{[%clk 0:00:33.8]} 111... Kf4 {[%clk 0:00:57]} 112. a5 {[%clk 0:00:34]} 112...
Kg5 {[%clk 0:00:57.9]} 113. Qab7 {[%clk 0:00:34]} 113... Kf4 {[%clk 0:00:58.1]}
114. a6 {[%clk 0:00:34.9]} 114... Ke5 {[%clk 0:00:59]} 115. a7 {[%clk
0:00:33.9]} 115... Kd4 {[%clk 0:00:59.9]} 116. a8=N {[%clk 0:00:33.1]} 116...
Ke5 {[%clk 0:01:00.8]} 117. Qbb5+ {[%clk 0:00:32.1]} 117... Kd4 {[%clk
0:01:01.7]} 118. Qcc4+ {[%clk 0:00:31.9]} 118... Ke3 {[%clk 0:01:02.2]} 119.
Qbb3+ {[%clk 0:00:31.2]} 119... Kd2 {[%clk 0:01:03.1]} 120. Qcc2+ {[%clk
0:00:30.7]} 120... Ke1 {[%clk 0:01:04]} 121. Qbb2 {[%clk 0:00:28.4]} 121... Kf1
{[%clk 0:01:04.9]} 122. Nb6 {[%clk 0:00:27.8]} 122... Ke1 {[%clk 0:01:04.9]}
123. Nd5 {[%clk 0:00:27.7]} 123... Kf1 {[%clk 0:01:04.8]} 124. Ke6 {[%clk
0:00:27.9]} 124... Ke1 {[%clk 0:01:05.2]} 125. Ke5 {[%clk 0:00:28.3]} 125... Kf1
{[%clk 0:01:05.8]} 126. Qbb1# {[%clk 0:00:28.7]} 1-0

[Event "Early-Titled-Tuesday-Blitz-March-05-2024"]
[Site "Chess.com"]
[Date "2024.03.05"]
[Round "1"]
[White "isaak2009"]
[Black "cthulhuuu"]
[Result "1/2-1/2"]
[WhiteElo "2751"]
[BlackElo "2442"]
[TimeControl "180+1"]
[EndTime "8:09:42 PST"]
[Termination "Game drawn - insufficient material"]

1. d4 {[%clk 0:03:00.9]} 1... Nf6 {[%clk 0:02:59.7]} 2. c4 {[%clk 0:03:00.8]}
2... e5 {[%clk 0:03:00]} 3. dxe5 {[%clk 0:03:00.7]} 3... Ng4 {[%clk 0:03:00.3]}
4. e4 {[%clk 0:02:55.9]} 4... Nxe5 {[%clk 0:02:59.7]} 5. Be2 {[%clk 0:02:56.4]}
5... Bc5 {[%clk 0:02:56.9]} 6. Nf3 {[%clk 0:02:56.1]} 6... Nxf3+ {[%clk
0:02:53.5]} 7. Bxf3 {[%clk 0:02:57]} 7... Nc6 {[%clk 0:02:53.6]} 8. O-O {[%clk
0:02:55.9]} 8... d6 {[%clk 0:02:53.5]} 9. Nc3 {[%clk 0:02:55.6]} 9... O-O {[%clk
0:02:52.2]} 10. a3 {[%clk 0:02:48.4]} 10... a5 {[%clk 0:02:52]} 11. Re1 {[%clk
0:02:43.8]} 11... Ne5 {[%clk 0:02:47.6]} 12. Be2 {[%clk 0:02:41.7]} 12... Be6
{[%clk 0:02:32.2]} 13. b3 {[%clk 0:02:23.3]} 13... Qf6 {[%clk 0:02:23.5]} 14.
Rf1 {[%clk 0:02:18.4]} 14... Nxc4 {[%clk 0:02:16.4]} 15. Qc2 {[%clk 0:02:17.2]}
15... Ne5 {[%clk 0:02:05.6]} 16. Bb2 {[%clk 0:02:15.6]} 16... Qh4 {[%clk
0:02:05.3]} 17. Nd5 {[%clk 0:02:04.4]} 17... Bxd5 {[%clk 0:01:44.6]} 18. exd5
{[%clk 0:02:05.3]} 18... Rae8 {[%clk 0:01:32]} 19. g3 {[%clk 0:01:55.7]} 19...
Qh3 {[%clk 0:01:29.5]} 20. Rae1 {[%clk 0:01:46.7]} 20... f5 {[%clk 0:01:27.7]}
21. b4 {[%clk 0:01:42.8]} 21... axb4 {[%clk 0:01:20.6]} 22. axb4 {[%clk
0:01:43.3]} 22... Bxb4 {[%clk 0:01:20.7]} 23. Rb1 {[%clk 0:01:43.9]} 23... Bc5
{[%clk 0:01:16.6]} 24. Bxe5 {[%clk 0:01:23.9]} 24... Rxe5 {[%clk 0:01:17.5]} 25.
Bf3 {[%clk 0:01:24.4]} 25... f4 {[%clk 0:00:33.5]} 26. Bg2 {[%clk 0:01:24.4]}
26... Qg4 {[%clk 0:00:31.3]} 27. Qc4 {[%clk 0:00:41.4]} 27... h5 {[%clk
0:00:08.2]} 28. h3 {[%clk 0:00:13.8]} 28... Qxg3 {[%clk 0:00:07.9]} 29. Qxc5
{[%clk 0:00:12.5]} 29... Qxg2+ {[%clk 0:00:08.2]} 30. Kxg2 {[%clk 0:00:13.4]}
30... dxc5 {[%clk 0:00:07.8]} 31. Rxb7 {[%clk 0:00:13.3]} 31... f3+ {[%clk
0:00:08.1]} 32. Kh2 {[%clk 0:00:13.7]} 32... Rxd5 {[%clk 0:00:06.9]} 33. Rxc7
{[%clk 0:00:13.4]} 33... Rg5 {[%clk 0:00:07.5]} 34. Rg1 {[%clk 0:00:13.1]} 34...
Rff5 {[%clk 0:00:07.1]} 35. Rc8+ {[%clk 0:00:12.8]} 35... Kh7 {[%clk 0:00:07.6]}
36. h4 {[%clk 0:00:12.7]} 36... Rxg1 {[%clk 0:00:06.4]} 37. Kxg1 {[%clk
0:00:13.6]} 37... Rf4 {[%clk 0:00:06.1]} 38. Rxc5 {[%clk 0:00:13.5]} 38... Rg4+
{[%clk 0:00:06.5]} 39. Kh2 {[%clk 0:00:12.2]} 39... Rxh4+ {[%clk 0:00:07.4]} 40.
Kg3 {[%clk 0:00:12.9]} 40... Rg4+ {[%clk 0:00:06.6]} 41. Kxf3 {[%clk 0:00:13.7]}
41... Kh6 {[%clk 0:00:07]} 42. Rc6+ {[%clk 0:00:14.1]} 42... Rg6 {[%clk
0:00:07.2]} 43. Rc8 {[%clk 0:00:15]} 43... Rf6+ {[%clk 0:00:07.5]} 44. Kg3
{[%clk 0:00:15.1]} 44... g5 {[%clk 0:00:07.9]} 45. Rh8+ {[%clk 0:00:14.5]} 45...
Kg6 {[%clk 0:00:08.5]} 46. Rg8+ {[%clk 0:00:15.1]} 46... Kf5 {[%clk 0:00:08.9]}
47. Rh8 {[%clk 0:00:15.3]} 47... h4+ {[%clk 0:00:08.6]} 48. Kg2 {[%clk
0:00:15.7]} 48... Kg4 {[%clk 0:00:08.8]} 49. Rg8 {[%clk 0:00:14.5]} 49... h3+
{[%clk 0:00:08.5]} 50. Kg1 {[%clk 0:00:15.1]} 50... Rf5 {[%clk 0:00:08.1]} 51.
Rg7 {[%clk 0:00:14.4]} 51... Kh4 {[%clk 0:00:07.7]} 52. Rh7+ {[%clk 0:00:13.9]}
52... Kg4 {[%clk 0:00:08.2]} 53. Rg7 {[%clk 0:00:14.5]} 53... Rc5 {[%clk
0:00:08.2]} 54. Rf7 {[%clk 0:00:11.6]} 54... Rc1+ {[%clk 0:00:07.4]} 55. Kh2
{[%clk 0:00:11.7]} 55... Rc3 {[%clk 0:00:08]} 56. Kg1 {[%clk 0:00:08.5]} 56...
Rf3 {[%clk 0:00:07.3]} 57. Rh7 {[%clk 0:00:06]} 57... Rf4 {[%clk 0:00:06.5]} 58.
Rh8 {[%clk 0:00:05.9]} 58... Rf3 {[%clk 0:00:06.4]} 59. Rh7 {[%clk 0:00:06]}
59... Ra3 {[%clk 0:00:06.6]} 60. Rh8 {[%clk 0:00:06.2]} 60... Kf4 {[%clk
0:00:06.9]} 61. Rf8+ {[%clk 0:00:05.7]} 61... Kg4 {[%clk 0:00:07.2]} 62. Rh8
{[%clk 0:00:06.2]} 62... Ra1+ {[%clk 0:00:06.8]} 63. Kh2 {[%clk 0:00:05.4]}
63... Ra2 {[%clk 0:00:05.8]} 64. Kg1 {[%clk 0:00:06]} 64... Ra3 {[%clk
0:00:05.9]} 65. Rh7 {[%clk 0:00:05.8]} 65... Rf3 {[%clk 0:00:06.1]} 66. Rh8
{[%clk 0:00:05.9]} 66... Kf4 {[%clk 0:00:06.2]} 67. Rf8+ {[%clk 0:00:06.5]}
67... Ke4 {[%clk 0:00:06.6]} 68. Re8+ {[%clk 0:00:06.8]} 68... Kf5 {[%clk
0:00:06.8]} 69. Rf8+ {[%clk 0:00:07.3]} 69... Kg4 {[%clk 0:00:07.1]} 70. Rh8
{[%clk 0:00:08]} 70... Kf4 {[%clk 0:00:06.9]} 71. Rf8+ {[%clk 0:00:08.2]} 71...
Ke4 {[%clk 0:00:07.4]} 72. Re8+ {[%clk 0:00:08.4]} 72... Kf4 {[%clk 0:00:05.4]}
73. Rg8 {[%clk 0:00:08.6]} 73... g4 {[%clk 0:00:05.1]} 74. Rf8+ {[%clk
0:00:08.7]} 74... Ke4 {[%clk 0:00:05.2]} 75. Re8+ {[%clk 0:00:08.5]} 75... Kf5
{[%clk 0:00:05.3]} 76. Rf8+ {[%clk 0:00:09]} 76... Ke4 {[%clk 0:00:05.7]} 77.
Re8+ {[%clk 0:00:09.4]} 77... Kd3 {[%clk 0:00:06.2]} 78. Rd8+ {[%clk 0:00:09.8]}
78... Ke2 {[%clk 0:00:06.4]} 79. Re8+ {[%clk 0:00:09.9]} 79... Kd2 {[%clk
0:00:05.3]} 80. Rd8+ {[%clk 0:00:10.2]} 80... Rd3 {[%clk 0:00:05]} 81. Rg8
{[%clk 0:00:10.8]} 81... Rd4 {[%clk 0:00:05.4]} 82. Re8 {[%clk 0:00:11.4]} 82...
Kd3 {[%clk 0:00:05.4]} 83. Rg8 {[%clk 0:00:11.5]} 83... Re4 {[%clk 0:00:05.8]}
84. Kh2 {[%clk 0:00:08.8]} 84... Ke2 {[%clk 0:00:06.1]} 85. Kg3 {[%clk 0:00:09]}
85... h2 {[%clk 0:00:06.5]} 86. Kxh2 {[%clk 0:00:09]} 86... Kxf2 {[%clk
0:00:07]} 87. Rf8+ {[%clk 0:00:08.7]} 87... Ke3 {[%clk 0:00:05.6]} 88. Kg3
{[%clk 0:00:09.1]} 88... Ke2 {[%clk 0:00:05.1]} 89. Rf6 {[%clk 0:00:09]} 89...
Ke3 {[%clk 0:00:05.4]} 90. Ra6 {[%clk 0:00:09.2]} 90... Kd4 {[%clk 0:00:05.5]}
91. Ra4+ {[%clk 0:00:09.5]} 91... Ke5 {[%clk 0:00:05.9]} 92. Rxe4+ {[%clk
0:00:10]} 92... Kxe4 {[%clk 0:00:06.8]} 93. Kxg4 {[%clk 0:00:10.9]} 1/2-1/2

[Event "Early-Titled-Tuesday-Blitz-March-05-2024"]
[Site "Chess.com"]
[Date "2024.03.05"]
[Round "1"]
[White "AlexandraSamaganova"]
[Black "sathvikadiga"]
[Result "1-0"]
[WhiteElo "2310"]
[BlackElo "2591"]
[TimeControl "180+1"]
[EndTime "8:10:15 PST"]
[Termination "AlexandraSamaganova won by checkmate"]

1. c4 {[%clk 0:03:00.9]} 1... Nf6 {[%clk 0:02:52.7]} 2. Nc3 {[%clk 0:02:59.1]}
2... g6 {[%clk 0:02:53.6]} 3. g3 {[%clk 0:02:59]} 3... Bg7 {[%clk 0:02:54.4]} 4.
Bg2 {[%clk 0:02:59.2]} 4... d6 {[%clk 0:02:55.3]} 5. Nf3 {[%clk 0:02:59.1]} 5...
O-O {[%clk 0:02:56]} 6. O-O {[%clk 0:02:59.3]} 6... Nc6 {[%clk 0:02:56.6]} 7. d3
{[%clk 0:02:58.6]} 7... e5 {[%clk 0:02:56.7]} 8. h3 {[%clk 0:02:53]} 8... h6
{[%clk 0:02:48.1]} 9. Rb1 {[%clk 0:02:51.9]} 9... Be6 {[%clk 0:02:47.4]} 10. Ne1
{[%clk 0:02:50.2]} 10... Qd7 {[%clk 0:02:47.1]} 11. Kh2 {[%clk 0:02:47]} 11...
a5 {[%clk 0:02:46.4]} 12. a3 {[%clk 0:02:45.8]} 12... Rfb8 {[%clk 0:02:44.7]}
13. b4 {[%clk 0:02:44.8]} 13... axb4 {[%clk 0:02:45.6]} 14. axb4 {[%clk
0:02:44.7]} 14... Ne7 {[%clk 0:02:46.2]} 15. b5 {[%clk 0:02:41.4]} 15... c6
{[%clk 0:02:45]} 16. Nc2 {[%clk 0:02:39.3]} 16... Nf5 {[%clk 0:02:41.8]} 17. Bd2
{[%clk 0:02:31.3]} 17... h5 {[%clk 0:02:36]} 18. Ra1 {[%clk 0:02:23.3]} 18... h4
{[%clk 0:02:31]} 19. g4 {[%clk 0:02:15.9]} 19... Nd4 {[%clk 0:02:30.8]} 20. e3
{[%clk 0:02:07.6]} 20... Nxc2 {[%clk 0:02:23.9]} 21. Qxc2 {[%clk 0:02:07.5]}
21... d5 {[%clk 0:02:23.8]} 22. bxc6 {[%clk 0:02:05.1]} 22... bxc6 {[%clk
0:02:22.5]} 23. cxd5 {[%clk 0:02:05.1]} 23... cxd5 {[%clk 0:02:23.4]} 24. Rxa8
{[%clk 0:01:50.6]} 24... Rxa8 {[%clk 0:02:20.4]} 25. Rb1 {[%clk 0:01:42.3]}
25... Rc8 {[%clk 0:02:15.5]} 26. Qa4 {[%clk 0:01:27.1]} 26... Qd6 {[%clk
0:01:53.2]} 27. Nb5 {[%clk 0:01:20.7]} 27... Qd7 {[%clk 0:01:39.2]} 28. Qa7
{[%clk 0:01:18.1]} 28... Qxa7 {[%clk 0:01:38.7]} 29. Nxa7 {[%clk 0:01:18.3]}
29... Rc2 {[%clk 0:01:39.2]} 30. Be1 {[%clk 0:01:18.1]} 30... Bf8 {[%clk
0:01:24.3]} 31. Kg1 {[%clk 0:01:09.7]} 31... Kg7 {[%clk 0:01:18.3]} 32. Nb5
{[%clk 0:01:03.9]} 32... Bc5 {[%clk 0:01:11.1]} 33. Bc3 {[%clk 0:00:56.5]} 33...
Nd7 {[%clk 0:00:53.5]} 34. Ba1 {[%clk 0:00:48.7]} 34... f6 {[%clk 0:00:48.7]}
35. d4 {[%clk 0:00:40.5]} 35... Be7 {[%clk 0:00:48.6]} 36. dxe5 {[%clk
0:00:35.9]} 36... fxe5 {[%clk 0:00:47.9]} 37. f4 {[%clk 0:00:22.5]} 37... Re2
{[%clk 0:00:35.7]} 38. Nc7 {[%clk 0:00:17.3]} 38... Bf7 {[%clk 0:00:33.5]} 39.
Nxd5 {[%clk 0:00:13.4]} 39... Bxd5 {[%clk 0:00:29.1]} 40. Bxd5 {[%clk
0:00:13.6]} 40... Rxe3 {[%clk 0:00:19.9]} 41. Bc6 {[%clk 0:00:11.8]} 41... Nf6
{[%clk 0:00:18.1]} 42. Bxe5 {[%clk 0:00:10.4]} 42... Kf7 {[%clk 0:00:18.2]} 43.
Bg2 {[%clk 0:00:06.5]} 43... Ne8 {[%clk 0:00:14.2]} 44. Rb7 {[%clk 0:00:06.1]}
44... Kf8 {[%clk 0:00:13.2]} 45. Rb8 {[%clk 0:00:04.7]} 45... Bc5 {[%clk
0:00:11.7]} 46. Kh2 {[%clk 0:00:03.4]} 46... Re2 {[%clk 0:00:11]} 47. Kh1 {[%clk
0:00:03.2]} 47... Bf2 {[%clk 0:00:11.3]} 48. Bc6 {[%clk 0:00:02.8]} 48... Kf7
{[%clk 0:00:10.1]} 49. Bxe8+ {[%clk 0:00:02.6]} 49... Ke6 {[%clk 0:00:10.7]} 50.
Bc6 {[%clk 0:00:02.5]} 50... Bg3 {[%clk 0:00:10.2]} 51. Bf3 {[%clk 0:00:01.2]}
51... Rh2+ {[%clk 0:00:08.3]} 52. Kg1 {[%clk 0:00:01.4]} 52... Rf2 {[%clk
0:00:09.2]} 53. Rb6+ {[%clk 0:00:01.8]} 53... Kd7 {[%clk 0:00:08.6]} 54. Bc6+
{[%clk 0:00:01.7]} 54... Ke7 {[%clk 0:00:07.2]} 55. Rb7+ {[%clk 0:00:01.7]}
55... Ke6 {[%clk 0:00:07.7]} 56. Bd7+ {[%clk 0:00:02.3]} 56... Kd5 {[%clk
0:00:07.7]} 57. Rb5+ {[%clk 0:00:02.4]} 57... Kc4 {[%clk 0:00:08.4]} 58. Ra5
{[%clk 0:00:02]} 58... Rc2 {[%clk 0:00:07.3]} 59. Be6+ {[%clk 0:00:02]} 59...
Kb4 {[%clk 0:00:07.1]} 60. Ra7 {[%clk 0:00:01]} 60... Rc1+ {[%clk 0:00:07.2]}
61. Kg2 {[%clk 0:00:01.1]} 61... Rc2+ {[%clk 0:00:07.9]} 62. Kf3 {[%clk
0:00:01.7]} 62... Rf2+ {[%clk 0:00:06.7]} 63. Ke4 {[%clk 0:00:01.6]} 63... Re2+
{[%clk 0:00:07.3]} 64. Kd5 {[%clk 0:00:02.1]} 64... Rc2 {[%clk 0:00:06.8]} 65.
Rb7+ {[%clk 0:00:01.4]} 65... Ka3 {[%clk 0:00:06.9]} 66. Bd6+ {[%clk 0:00:01.4]}
66... Ka4 {[%clk 0:00:06.3]} 67. Bd7+ {[%clk 0:00:01.3]} 67... Ka5 {[%clk
0:00:06.8]} 68. Ra7+ {[%clk 0:00:01.6]} 68... Kb6 {[%clk 0:00:06.8]} 69. Ra3
{[%clk 0:00:01.5]} 69... Rd2+ {[%clk 0:00:07.1]} 70. Ke6 {[%clk 0:00:01.9]}
70... Re2+ {[%clk 0:00:06.4]} 71. Kf6 {[%clk 0:00:02.2]} 71... Rd2 {[%clk
0:00:07]} 72. Rb3+ {[%clk 0:00:02.5]} 72... Ka6 {[%clk 0:00:06.9]} 73. Ke7
{[%clk 0:00:02.5]} 73... Re2+ {[%clk 0:00:05.9]} 74. Be6 {[%clk 0:00:02.5]}
74... Rc2 {[%clk 0:00:05]} 75. Kd7 {[%clk 0:00:02.5]} 75... Ka5 {[%clk
0:00:05.4]} 76. Ra3+ {[%clk 0:00:02.2]} 76... Kb5 {[%clk 0:00:06]} 77. Rb3+
{[%clk 0:00:02.4]} 77... Ka4 {[%clk 0:00:06.5]} 78. Rb7 {[%clk 0:00:02.2]} 78...
Rc3 {[%clk 0:00:05.6]} 79. Bd5 {[%clk 0:00:01.6]} 79... Bf2 {[%clk 0:00:04.7]}
80. Bc6+ {[%clk 0:00:02]} 80... Ka5 {[%clk 0:00:04.5]} 81. Bb4+ {[%clk
0:00:02.4]} 81... Ka6 {[%clk 0:00:04.3]} 82. Bxc3 {[%clk 0:00:02.9]} 82... Bb6
{[%clk 0:00:04.2]} 83. Rxb6+ {[%clk 0:00:03]} 83... Kxb6 {[%clk 0:00:03.8]} 84.
Be4 {[%clk 0:00:03.7]} 84... g5 {[%clk 0:00:04.3]} 85. Be1 {[%clk 0:00:03.4]}
85... gxf4 {[%clk 0:00:05.2]} 86. Bxh4 {[%clk 0:00:03.3]} 86... Kc5 {[%clk
0:00:06.1]} 87. Bg5 {[%clk 0:00:02.6]} 87... Kd4 {[%clk 0:00:05.7]} 88. Bf5
{[%clk 0:00:02.4]} 88... f3 {[%clk 0:00:05.3]} 89. Be6 {[%clk 0:00:01.1]} 89...
f2 {[%clk 0:00:05.1]} 90. Be3+ {[%clk 0:00:01.1]} 90... Kxe3 {[%clk 0:00:03]}
91. Bc4 {[%clk 0:00:01.4]} 91... Kf3 {[%clk 0:00:03.9]} 92. g5 {[%clk
0:00:01.5]} 92... Kg3 {[%clk 0:00:04]} 93. g6 {[%clk 0:00:01.9]} 93... Kh4
{[%clk 0:00:04.6]} 94. g7 {[%clk 0:00:02.3]} 94... f1=Q {[%clk 0:00:05.4]} 95.
Bxf1 {[%clk 0:00:01.9]} 95... Kh5 {[%clk 0:00:05.6]} 96. g8=Q {[%clk 0:00:02.4]}
96... Kh6 {[%clk 0:00:06.5]} 97. Qg4 {[%clk 0:00:02.4]} 97... Kh7 {[%clk
0:00:06.7]} 98. Ke7 {[%clk 0:00:03.1]} 98... Kh8 {[%clk 0:00:07.6]} 99. Kf7
{[%clk 0:00:03.3]} 99... Kh7 {[%clk 0:00:08.5]} 100. Qh5# {[%clk 0:00:03.7]} 1-0